Body Name,Body,Supplier Name,Spending Service,Nature of Spend,Ledger Date,Invoice Reference,Net Amount (excluding VAT)
Lancaster City Council,30UH,A & C Weber UK Ltd,Environmental Services,Equipment and Tools - General,03/06/2013,2013-000685,4000
Lancaster City Council,30UH,A G Electrics,Environmental Services,Capital Payments To Contractors,12/06/2013,91449,950
Lancaster City Council,30UH,A Marsden Windows,Health & Housing,Capital Grants,11/06/2013,Inv. AM556,1312.5
Lancaster City Council,30UH,A Marsden Windows,Health & Housing,Home Improvement Works,05/06/2013,Inv.  AM560,733.33
Lancaster City Council,30UH,A.A.M. Services Limited,Environmental Services,Contracted Services,19/06/2013,7312,656
Lancaster City Council,30UH,A.A.M. Services Limited,Environmental Services,Materials - General,26/06/2013,7298,766
Lancaster City Council,30UH,A1 Supaskips Ltd,Environmental Services,Services - Waste Disposal,10/06/2013,52005,865.2
Lancaster City Council,30UH,A1 Supaskips Ltd,Environmental Services,Services - Waste Disposal,20/06/2013,52159,4661.54
Lancaster City Council,30UH,Abritas Ltd,Health & Housing,Software Miscellaneous,13/06/2013,3565,1875
Lancaster City Council,30UH,Active Training Network,Health & Housing,Service Training Budget,12/06/2013,ATN/A1045,625
Lancaster City Council,30UH,Aggregate Industries UK Ltd,Environmental Services,Materials - General,06/06/2013,17955417,674.05
Lancaster City Council,30UH,Aggregate Industries UK Ltd,Environmental Services,Materials - General,25/06/2013,18254701,515.76
Lancaster City Council,30UH,Aggregate Industries UK Ltd,Environmental Services,White Lund Stock,06/06/2013,18188368,668.83
Lancaster City Council,30UH,Allied (Lancaster) Limited,Environmental Services,Recharge from Lancaster Marketgate,03/06/2013,583,2500
Lancaster City Council,30UH,Allstar Business Solutions Ltd,Environmental Services,Petrol & Derv,27/06/2013,P2000922642,538.78
Lancaster City Council,30UH,Allstar Business Solutions Ltd,Environmental Services,Petrol & Derv,27/06/2013,P2000969609,561.37
Lancaster City Council,30UH,Anchor Flooring Limited,Environmental Services,Capital Payments To Contractors,05/06/2013,AF/3988,2016
Lancaster City Council,30UH,Anglo Espanol Ltd t/a Plastech Windows,Environmental Services,Contracted Services,21/06/2013,2176,1466.67
Lancaster City Council,30UH,Anglo Espanol Ltd t/a Plastech Windows,Environmental Services,Contracted Services,21/06/2013,2177,2208.33
Lancaster City Council,30UH,Anglo Espanol Ltd t/a Plastech Windows,Environmental Services,Contracted Services,21/06/2013,2178,791.67
Lancaster City Council,30UH,Aquarius Solutions,Environmental Services,Materials - General,25/06/2013,JH 05006,758.2
Lancaster City Council,30UH,Armistead Barnett LLP,Regeneration and Planning,Capital Payments To Contractors,06/06/2013,3169,990.84
Lancaster City Council,30UH,Arnold Building Services Ltd,Environmental Services,Gas,03/06/2013,INV24006,1263.9
Lancaster City Council,30UH,Arnold Building Services Ltd,Environmental Services,Materials - General,03/06/2013,INV024007,1913.8
Lancaster City Council,30UH,ATN Consultancy Ltd,Resources,Infrastructure - Update & Maintenance,05/06/2013,2907,8995
Lancaster City Council,30UH,ATN Consultancy Ltd,Resources,Infrastructure - Update & Maintenance,05/06/2013,2907,500
Lancaster City Council,30UH,ATS Euromaster Ltd,Environmental Services,Repair & Mtce Of Vehicles,27/06/2013,89528,2284.8
Lancaster City Council,30UH,Audit Commission,Resources,Audit Fees,20/06/2013,4044944,1150
Lancaster City Council,30UH,autoglass,Resources,Insurance Excess,14/06/2013,19500,553.67
Lancaster City Council,30UH,Bay Scaffolding Ltd,Environmental Services,Materials - General,26/06/2013,7734,1000
Lancaster City Council,30UH,BemroseBooth Ltd,Environmental Services,Printing & Stationery,26/06/2013,1/357447,634
Lancaster City Council,30UH,Ben Lewis,Health & Housing,Grounds Maintenance - Other,20/06/2013,1,1000
Lancaster City Council,30UH,Booker,Health & Housing,Materials For Resale,28/06/2013,19671,"1,513.49"
Lancaster City Council,30UH,Booker sLancaster,Health & Housing,Materials For Resale,05/06/2013,19402,628.11
Lancaster City Council,30UH,Bookers Lancaster,Health & Housing,Vending Machine Supplies,05/06/2013,19401,628.11
Lancaster City Council,30UH,Bottomline Technologies Limited,Resources,Software - BACS,05/06/2013,INV406193,1500
Lancaster City Council,30UH,Bowker IT Limited,Resources,Computer Equipment,05/06/2013,904634,1575
Lancaster City Council,30UH,Bowker IT Limited,Resources,Computer Equipment,05/06/2013,904634,575
Lancaster City Council,30UH,Bowker IT Limited,Resources,Computer Equipment,05/06/2013,904634,950
Lancaster City Council,30UH,Bowker IT Limited,Resources,Computer Equipment,05/06/2013,904634,550
Lancaster City Council,30UH,Bradley Environmental Consultants Limited,Resources,R & M - Buildings,05/06/2013,73272,560
Lancaster City Council,30UH,Bradley Environmental Consultants Limited,Resources,R & M - Buildings,05/06/2013,73273,560
Lancaster City Council,30UH,Brent Roebuck Road Markings Ltd,Environmental Services,R & M Sites & Signs,03/06/2013,73180,778
Lancaster City Council,30UH,Brent Roebuck Road Markings Ltd,Environmental Services,R & M Sites & Signs,03/06/2013,73181,1086
Lancaster City Council,30UH,Brent Roebuck Road Markings Ltd,Environmental Services,R & M Sites & Signs,12/06/2013,73184,2602
Lancaster City Council,30UH,British Gas Business,Health & Housing,Electricity,20/06/2013,61984791/1,1077.78
Lancaster City Council,30UH,British Gas Business,Health & Housing,Electricity,20/06/2013,62027454/1,1045.73
Lancaster City Council,30UH,British Gas Business,Health & Housing,Gas,17/06/2013,62217203/1,7410.15
Lancaster City Council,30UH,British Gas Business,Health & Housing,Gas,18/06/2013,61737599/1,8560.75
Lancaster City Council,30UH,British Gas Business,Health & Housing,Gas,20/06/2013,62217198/1,506.55
Lancaster City Council,30UH,British Gas Business,Health & Housing,Gas,20/06/2013,62217201/1,1300.97
Lancaster City Council,30UH,British Gas Business,Health & Housing,Gas,20/06/2013,62217202/1,1918.19
Lancaster City Council,30UH,British Gas Business,Health & Housing,Gas,20/06/2013,62217544/1,667.13
Lancaster City Council,30UH,British Gas Business,Health & Housing,Gas,20/06/2013,62217546/1,1728.58
Lancaster City Council,30UH,British Gas Business,Health & Housing,Gas,20/06/2013,62217547/1,1254.47
Lancaster City Council,30UH,British Gas Business,Health & Housing,Gas,20/06/2013,62217549/1,1635.38
Lancaster City Council,30UH,British Gas Business,Environmental Services,Gas,06/06/2013,61791370/1,1561.89
Lancaster City Council,30UH,British Gas Business,Environmental Services,Gas,06/06/2013,61791377/1,1586.25
Lancaster City Council,30UH,British Gas Business,Environmental Services,Gas,20/06/2013,52217199/1,976.01
Lancaster City Council,30UH,British Gas Business,Resources,Gas,03/06/2013,61788664/1,559.81
Lancaster City Council,30UH,British Gas Business,Resources,Gas,03/06/2013,61788665/1,874.22
Lancaster City Council,30UH,British Gas Business,Resources,Gas,03/06/2013,61791371/1,5167.76
Lancaster City Council,30UH,British Gas Business,Resources,Gas,18/06/2013,62217188/1,563.57
Lancaster City Council,30UH,Broadoak Leisure Buildings Limited,Health & Housing,Grounds Maintenance - Other,25/06/2013,10684,764.17
Lancaster City Council,30UH,Broxap Ltd,Health & Housing,Grounds Maintenance - Other,28/06/2013,19674,904
Lancaster City Council,30UH,BT PLC,Environmental Services,Hire Of Equipment,03/06/2013,20018066,32023.23
Lancaster City Council,30UH,BT PLC,Environmental Services,Hire Of Equipment,03/06/2013,20018831,-781.27
Lancaster City Council,30UH,Butterfly Conservation,Regeneration and Planning,Grants,07/06/2013,npr000070,9566.34
Lancaster City Council,30UH,C H Brownsord Ltd,Environmental Services,Contracted Services,07/06/2013,301,9500
Lancaster City Council,30UH,C H Brownsord Ltd,Environmental Services,Void Maintenance - External,21/06/2013,313,8400
Lancaster City Council,30UH,Cable&Wireless UK,Resources,Data Line Rental,05/06/2013,UK10/062013/9548,7623.33
Lancaster City Council,30UH,Cable&Wireless UK,Resources,Telephones,05/06/2013,12018310,1196.16
Lancaster City Council,30UH,Cadassist Ltd,Regeneration and Planning,Software Purchase\Licences,19/06/2013,INV-08260-9J86,2085
Lancaster City Council,30UH,Canal & River Trust,Resources,Rent,18/06/2013,23375,900
Lancaster City Council,30UH,Capita Business Services Ltd,Environmental Services,Software Miscellaneous,03/06/2013,92869233,2350.92
Lancaster City Council,30UH,Car & Coach Ltd,Resources,Insurance Excess,26/06/2013,2804,590
Lancaster City Council,30UH,Carlisle Glass Limited,Environmental Services,Equipment and Tools - General,03/06/2013,M 587737,1007
Lancaster City Council,30UH,Carlisle Glass Limited,Environmental Services,Equipment and Tools - General,03/06/2013,M 587738,555
Lancaster City Council,30UH,Carlisle Glass Limited,Environmental Services,Equipment and Tools - General,03/06/2013,M 588138,599.7
Lancaster City Council,30UH,Carlisle Glass Limited,Environmental Services,Materials - General,03/06/2013,M 587735,700
Lancaster City Council,30UH,Carlisle Glass Limited,Environmental Services,Materials - General,27/06/2013,M 593575,608
Lancaster City Council,30UH,Carlisle Glass Limited,Environmental Services,White Lund Stock,04/06/2013,M 583343,505.95
Lancaster City Council,30UH,Carlisle Glass Limited,Environmental Services,White Lund Stock,05/06/2013,M 588150,1097.25
Lancaster City Council,30UH,CEMEX UK Materials Ltd,Environmental Services,Materials - General,25/06/2013,3006142446,526.07
Lancaster City Council,30UH,Cheryl Towey (Instructor),Health & Housing,Services - General,04/06/2013,37,582
Lancaster City Council,30UH,Cleanall Services Ltd.,Resources,Other Cleaning,17/06/2013,20252,6022.38
Lancaster City Council,30UH,Colt Service Ltd,Resources,R & M - Buildings,05/06/2013,20055420,1295
Lancaster City Council,30UH,Complete Plans,Regeneration and Planning,R & M - Buildings,05/06/2013,36,4000
Lancaster City Council,30UH,Concept Promotions,Health & Housing,Equipment and Tools - General,11/06/2013,1928/2013,1650
Lancaster City Council,30UH,Constructing the Future Lancashire Limited,Environmental Services,Apprenticeship Scheme,06/06/2013,CTFL/SINV/00000355,1231.74
Lancaster City Council,30UH,Constructing the Future Lancashire Limited,Environmental Services,Apprenticeship Scheme,13/06/2013,CTFL/SINN/00000374,1296.92
Lancaster City Council,30UH,Constructing the Future Lancashire Limited,Environmental Services,Apprenticeship Scheme,26/06/2013,CTFL/SINV/0000316,1411.47
Lancaster City Council,30UH,Container Care Solutions,Environmental Services,Materials For Resale,05/06/2013,3263,975
Lancaster City Council,30UH,Container Care Solutions,Environmental Services,Materials For Resale,19/06/2013,3287,650
Lancaster City Council,30UH,Contour Showers Ltd.,Environmental Services,Materials - General,06/06/2013,405940,632.4
Lancaster City Council,30UH,Contour Showers Ltd.,Environmental Services,Materials - General,06/06/2013,407016,911.45
Lancaster City Council,30UH,Contour Showers Ltd.,Environmental Services,Materials - General,06/06/2013,407123,520.2
Lancaster City Council,30UH,CORGI Technical services Ltd,Environmental Services,Service Training Budget,24/06/2013,19569,"1,349.00"
Lancaster City Council,30UH,Corona Energy,Health & Housing,Gas,25/06/2013,8313666,658.92
Lancaster City Council,30UH,Corona Energy,Health & Housing,Gas,25/06/2013,55024189,902.53
Lancaster City Council,30UH,Correct Flow Engineering Ltd,Health & Housing,Contract Maintenance,20/06/2013,22758,2500
Lancaster City Council,30UH,Countrywide Environmental Services Ltd,Resources,R & M - Buildings,18/06/2013,11350,2632.8
Lancaster City Council,30UH,Countrywide Environmental Services Ltd,Resources,R & M - Buildings,18/06/2013,11356,624
Lancaster City Council,30UH,Countrywide Environmental Services Ltd,Resources,R & M - Buildings,26/06/2013,11360,895
Lancaster City Council,30UH,CPL Heating and Plumbing Ltd,Resources,Capital Payments To Contractors,18/06/2013,5460,18418.73
Lancaster City Council,30UH,CPL Heating and Plumbing Ltd,Resources,R & M - Buildings,11/06/2013,5413,9027.41
Lancaster City Council,30UH,CPL Heating and Plumbing Ltd,Resources,R & M - Buildings,18/06/2013,5460,2843.83
Lancaster City Council,30UH,Craig Jury Plant & Groundworks Limited,Regeneration and Planning,R & M - Buildings,13/06/2013,216,750
Lancaster City Council,30UH,Craig Jury Plant & Groundworks Limited,Regeneration and Planning,R & M - Buildings,13/06/2013,216,750
Lancaster City Council,30UH,Craig Jury Plant & Groundworks Limited,Regeneration and Planning,R & M - Sea & River / Promenade,26/06/2013,219,570
Lancaster City Council,30UH,Crossling Ltd,Environmental Services,White Lund Stock,05/06/2013,760326,1419.56
Lancaster City Council,30UH,CS Catering Equipment,Health & Housing,Equipment and Tools - General,28/06/2013,19673,649.2
Lancaster City Council,30UH,Cumbria Wildlife Trust,Regeneration and Planning,Grants,07/06/2013,npr000071,14456.1
Lancaster City Council,30UH,Cyclescheme Limited,Resources,Purchase of Cycles,26/06/2013,W189419,833.33
Lancaster City Council,30UH,D A Edgar Plastering & Tiling,Environmental Services,Capital Payments To Contractors,05/06/2013,7,1350
Lancaster City Council,30UH,D A Edgar Plastering & Tiling,Environmental Services,Capital Payments To Contractors,06/06/2013,8,1125
Lancaster City Council,30UH,D A Edgar Plastering & Tiling,Environmental Services,Capital Payments To Contractors,25/06/2013,9,1225
Lancaster City Council,30UH,Danfo (UK) Limited,Environmental Services,General Fees & Charges,03/06/2013,623,-3202.31
Lancaster City Council,30UH,Danfo (UK) Limited,Environmental Services,Services - General,03/06/2013,2376,14144.07
Lancaster City Council,30UH,Daniel Thwaites plc,Health & Housing,Bar Supplies,03/06/2013,19343,"1,035.99"
Lancaster City Council,30UH,Daniel Thwaites plc,Health & Housing,Bar Supplies,24/06/2013,19577,684.82
Lancaster City Council,30UH,Dave Wilson Developments,Health & Housing,Capital Grants,19/06/2013,spr000229,1834
Lancaster City Council,30UH,David A. Farrer Limited,Health & Housing,Capital Grants,11/06/2013,Inv. 3814,1550
Lancaster City Council,30UH,David A. Farrer Limited,Health & Housing,Capital Grants,19/06/2013,spr000230,2830
Lancaster City Council,30UH,David A. Farrer Limited,Health & Housing,Capital Grants,19/06/2013,spr000232,2675
Lancaster City Council,30UH,David A. Farrer Limited,Health & Housing,Contracted Services,11/06/2013,Inv. 3814,500
Lancaster City Council,30UH,David A. Farrer Limited,Health & Housing,Home Improvement Works,11/06/2013,Inv. 3814,750.62
Lancaster City Council,30UH,Designworks (Cumbria) Ltd,Health & Housing,Tenants Participation,13/06/2013,3731,1263
Lancaster City Council,30UH,DLF Trifolium Ltd,Environmental Services,White Lund Stock,25/06/2013,SI314309,1770.8
Lancaster City Council,30UH,Dorrigo T/A Regional Map Distributors,Health & Housing,Materials For Resale,18/06/2013,13278,1116.86
Lancaster City Council,30UH,Dutton International Limited t/a Masterstaff,Environmental Services,Contracted Services,04/06/2013,M173566,1274.3
Lancaster City Council,30UH,Dutton International Limited t/a Masterstaff,Environmental Services,Contracted Services,04/06/2013,M173656,1561.32
Lancaster City Council,30UH,Dutton International Limited t/a Masterstaff,Environmental Services,Contracted Services,04/06/2013,M173738,1253.56
Lancaster City Council,30UH,Dutton International Limited t/a Masterstaff,Environmental Services,Contracted Services,04/06/2013,M173830,1570.45
Lancaster City Council,30UH,Dutton International Limited t/a Masterstaff,Environmental Services,Contracted Services,26/06/2013,M173909,1431.65
Lancaster City Council,30UH,Dvla,Environmental Services,Vehicle Licences,10/06/2013,19443,652.5
Lancaster City Council,30UH,E.ON,Health & Housing,Electricity,10/06/2013,12910592590,1336.28
Lancaster City Council,30UH,E.ON ,Environmental Services,Electricity,12/06/2013,HEA1B102E,691.02
Lancaster City Council,30UH,Electro-Tech CP Ltd,Resources,R & M - Buildings,05/06/2013,2140,918.15
Lancaster City Council,30UH,EMCOR Engineering Services Ltd,Environmental Services,Capital Payments To Contractors,04/06/2013,MCO1004296,3576.24
Lancaster City Council,30UH,EMCOR Engineering Services Ltd,Environmental Services,Capital Payments To Contractors,07/06/2013,MCO1004298,15941.77
Lancaster City Council,30UH,EMCOR Engineering Services Ltd,Environmental Services,Capital Payments To Contractors,12/06/2013,MCO1004301,4476
Lancaster City Council,30UH,EMCOR Engineering Services Ltd,Environmental Services,Capital Payments To Contractors,19/06/2013,MCO1004307,47775.29
Lancaster City Council,30UH,EMCOR Engineering Services Ltd,Environmental Services,Gas Partnership Agreement,03/06/2013,MCO1004295,8228.97
Lancaster City Council,30UH,EMCOR Engineering Services Ltd,Environmental Services,Gas Partnership Agreement,07/06/2013,MCO1004297,27931.24
Lancaster City Council,30UH,EMCOR Engineering Services Ltd,Environmental Services,Gas Partnership Agreement,19/06/2013,MCO 1004306,60268.46
Lancaster City Council,30UH,Emo Oil Ltd,Environmental Services,White Lund Stock,04/06/2013,9628999,24732.45
Lancaster City Council,30UH,Emo Oil Ltd,Environmental Services,White Lund Stock,17/06/2013,9722565,24383.71
Lancaster City Council,30UH,Emo Oil Ltd,Environmental Services,White Lund Stock,26/06/2013,9594372,2615.63
Lancaster City Council,30UH,Environment Agency,Environmental Services,Contracted Services,13/06/2013,428291N,684
Lancaster City Council,30UH,Environment Agency,Environmental Services,Contracted Services,13/06/2013,435711N,1026
Lancaster City Council,30UH,Environment Agency,Regeneration and Planning,Services - General,06/06/2013,N0113383,1349
Lancaster City Council,30UH,Fat Media Ltd,Regeneration and Planning,Services - General,13/06/2013,100-215,1099
Lancaster City Council,30UH,Feather Brooksbank Ltd,Health & Housing,Employee Related Advertising,19/06/2013,100426,887.4
Lancaster City Council,30UH,Fire Safety Solutions Ltd,Environmental Services,R & M - Buildings,12/06/2013,FSS-1931,600
Lancaster City Council,30UH,Fire Safety Solutions Ltd,Resources,R & M - Buildings,13/06/2013,FSS-i195/41B,710.02
Lancaster City Council,30UH,Fire Safety Solutions Ltd,Resources,R & M - Buildings,13/06/2013,FSS-i195/41C,1065.13
Lancaster City Council,30UH,Fire Safety Solutions Ltd,Resources,R & M - Buildings,13/06/2013,FSS-i195/41D,710.02
Lancaster City Council,30UH,Fire Safety Solutions Ltd,Resources,R & M - Buildings,13/06/2013,FSS-i195/41G,710.02
Lancaster City Council,30UH,Fire Safety Solutions Ltd,Resources,R & M - Buildings,13/06/2013,FSS-i195/41H,710.02
Lancaster City Council,30UH,Fire Safety Solutions Ltd,Resources,R & M - Buildings,13/06/2013,FSS-i195/41I,710.02
Lancaster City Council,30UH,Fitzpatrick Woolmer Design & Publishing,Health & Housing,Contracted Services,24/06/2013,11394,2164
Lancaster City Council,30UH,Fool`s Paradise Ltd,Health & Housing,Entertainment Fees,11/06/2013,10807,690
Lancaster City Council,30UH,Fred Hall & Son Builders Ltd,Resources,Capital Payments To Contractors,06/06/2013,13A 022,13336.05
Lancaster City Council,30UH,FTS Fire and Security Ltd,Environmental Services,R & M - Buildings,19/06/2013,13974,587.4
Lancaster City Council,30UH,FTS Fire and Security Ltd,Resources,R & M - Buildings,05/06/2013,EXT 13880,645.6
Lancaster City Council,30UH,FTS Fire and Security Ltd,Resources,R & M - Buildings,05/06/2013,EXT 13969,723.4
Lancaster City Council,30UH,FTS Fire and Security Ltd,Resources,R & M - Buildings,11/06/2013,13992,529.6
Lancaster City Council,30UH,Furniture Matters,Environmental Services,Contribs From Other Local Auths,26/06/2013,285,-2058.25
Lancaster City Council,30UH,Furniture Matters,Environmental Services,Services - General,19/06/2013,284,16112
Lancaster City Council,30UH,G4S Secure Solutions (UK) Ltd,Health & Housing,Miscellaneous Licences,21/06/2013,s-00000623691-c,758
Lancaster City Council,30UH,Gardners Tiles Ltd,Environmental Services,Other Construction Costs,06/06/2013,1298,581.95
Lancaster City Council,30UH,George Barker and Sons Ltd,Health & Housing,R & M - Environmental Works,03/06/2013,19316,500
Lancaster City Council,30UH,George Speights and Sons Ltd,Health & Housing,Materials For Resale,28/06/2013,19669,618.34
Lancaster City Council,30UH,Graham The Plumber`s Merchant,Environmental Services,Other Construction Costs,12/06/2013,0235/00733130,1907.41
Lancaster City Council,30UH,Greenham Trading Limited,Environmental Services,White Lund Stock,18/06/2013,11/176344,817.3
Lancaster City Council,30UH,Greenham Trading Limited,Environmental Services,White Lund Stock,18/06/2013,11/176346,1595.1
Lancaster City Council,30UH,Gullivers Truck Hire Ltd,Environmental Services,Materials - General,04/06/2013,1304/16296,625
Lancaster City Council,30UH,Gullivers Truck Hire Ltd,Environmental Services,Materials - General,04/06/2013,1305/05134,625
Lancaster City Council,30UH,Gullivers Truck Hire Ltd,Environmental Services,Materials - General,12/06/2013,1305/03505,625
Lancaster City Council,30UH,Gullivers Truck Hire Ltd,Environmental Services,Materials - General,18/06/2013,1305/07743,625
Lancaster City Council,30UH,Gullivers Truck Hire Ltd,Environmental Services,Materials - General,18/06/2013,1306/12525,625
Lancaster City Council,30UH,Gullivers Truck Hire Ltd,Environmental Services,Materials - General,25/06/2013,1306/13802,625
Lancaster City Council,30UH,Gullivers Truck Hire Ltd,Environmental Services,Materials - General,25/06/2013,1306/15627,625
Lancaster City Council,30UH,H Bleasdale  (French Polisher),Resources,Office Equipment,06/06/2013,SH/SL/300513,1000
Lancaster City Council,30UH,Harvey Rush Entertainments,Health & Housing,Entertainment Fees,20/06/2013,935B,500
Lancaster City Council,30UH,Henry Alty Limited,Environmental Services,Materials - General,03/06/2013,716990,6318
Lancaster City Council,30UH,Henry Alty Limited,Environmental Services,Materials - General,03/06/2013,716990,1193.25
Lancaster City Council,30UH,Herbert T. Forrest Ltd,Environmental Services,Capital Payments To Contractors,19/06/2013,080068-6,1474.05
Lancaster City Council,30UH,Herbert T. Forrest Ltd,Environmental Services,Capital Payments To Contractors,27/06/2013,101615-2,128254.46
Lancaster City Council,30UH,Heysham Mossgate (Community Facilities) Co Ltd,Health & Housing,Grants,26/06/2013,bpr000163,14695.24
Lancaster City Council,30UH,Highwood Consultants Ltd,Environmental Services,Capital Payments To Contractors,07/06/2013,245373,45879.06
Lancaster City Council,30UH,HMCS,Resources,Legal & Court Costs,04/06/2013,19362,"3,543.00"
Lancaster City Council,30UH,HMCS,Resources,Legal & Court Costs,13/06/2013,19479,"2,751.00"
Lancaster City Council,30UH,Horiba UK Limited,Health & Housing,R & M - Air Quality Monitoring Station,10/06/2013,90018362,7083
Lancaster City Council,30UH,Howdens Joinery Co,Environmental Services,Materials - General,07/06/2013,D61/0045099,756.75
Lancaster City Council,30UH,Howdens Joinery Co,Environmental Services,Materials - General,07/06/2013,D61/0045508,587.7
Lancaster City Council,30UH,Hygiene Cleaning Supplies Ltd,Environmental Services,White Lund Stock,04/06/2013,49079,842.01
Lancaster City Council,30UH,Hygiene Cleaning Supplies Ltd,Environmental Services,White Lund Stock,17/06/2013,50008,708.26
Lancaster City Council,30UH,Idox Software Limited,Regeneration and Planning,Services - General,12/06/2013,7000629,2825
Lancaster City Council,30UH,IDOX Software Limited,Governance,Computer Equipment,27/06/2013,45377,5219.78
Lancaster City Council,30UH,Improvement and Development Agency (IDEA),Health & Housing,Software Miscellaneous,05/06/2013,40209390,735
Lancaster City Council,30UH,Ina Dittke and Associates,Health & Housing,Exhibitions & Events - Guarantees,12/06/2013,GBJC280613/1,1000
Lancaster City Council,30UH,Ina Dittke and Associates,Health & Housing,Exhibitions & Events - Guarantees,25/06/2013,GBJC280613/2,701.25
Lancaster City Council,30UH,Ingersoll Rand International Limited,Health & Housing,Other Fixed Plant,11/06/2013,60001385,1180
Lancaster City Council,30UH,Instarmac Group PLC,Environmental Services,White Lund Stock,04/06/2013,411122,1888.32
Lancaster City Council,30UH,J & H M Dickson Ltd,Environmental Services,Equipment and Tools - General,06/06/2013,50562,2000
Lancaster City Council,30UH,J C Critchley Ltd,Environmental Services,Capital Payments To Contractors,06/06/2013,865,4883
Lancaster City Council,30UH,J Chaplow & Sons Ltd,Environmental Services,Contracted Services,17/06/2013,14346,4200
Lancaster City Council,30UH,J N & D F Hoyles & Sons,Environmental Services,Materials - General,26/06/2013,1859,850
Lancaster City Council,30UH,Jewson Limited,Environmental Services,Materials - General,07/06/2013,0333/0188547,509.07
Lancaster City Council,30UH,Jill Trafford (Instructor),Health & Housing,Services - General,27/06/2013,Jun-13,980
Lancaster City Council,30UH,John Wilding Ltd,Resources,Insurance Excess,05/06/2013,8002068/L2542,500
Lancaster City Council,30UH,Johnston Publishing Ltd,Environmental Services,Miscellaneous Advertising,26/06/2013,383808,668.16
Lancaster City Council,30UH,Kalimba,Health & Housing,Venue - Premises Hire Costs,06/06/2013,K/ML/LCC2013 B,510
Lancaster City Council,30UH,Keyline Builders Merchant Ltd,Environmental Services,White Lund Stock,04/06/2013,1316 ADJ452,603
Lancaster City Council,30UH,Keyline Builders Merchant Ltd,Environmental Services,White Lund Stock,26/06/2013,1316 ADM785,646.69
Lancaster City Council,30UH,Killgerm,Health & Housing,Materials - General,25/06/2013,19590,"1,004.87"
Lancaster City Council,30UH,Kings Chambers,Regeneration and Planning,Services - General,18/06/2013,337633,1000
Lancaster City Council,30UH,Kompan,Environmental Services,Materials - General,25/06/2013,SI213921,1777.01
Lancaster City Council,30UH,Laburnum Nurseries Ltd,Health & Housing,Grounds Maintenance - Other,17/06/2013,28,2506.7
Lancaster City Council,30UH,Lambert Smith Hampton,Resources,External Professional Fees,27/06/2013,ARINV/00154508,13538
Lancaster City Council,30UH,Lancashire County Council,Health & Housing,Capital Grants,03/06/2013,spr000218,3609.88
Lancaster City Council,30UH,Lancashire County Council,Health & Housing,Capital Grants,06/06/2013,spr000220,2872
Lancaster City Council,30UH,Lancashire County Council,Health & Housing,Capital Grants,19/06/2013,spr000227,9559
Lancaster City Council,30UH,Lancashire County Council,Health & Housing,Capital Grants,27/06/2013,spr000233,2835
Lancaster City Council,30UH,Lancashire County Council,Health & Housing,Miscellaneous Expenditure,25/06/2013,5200028679,11892.63
Lancaster City Council,30UH,Lancashire County Council,Resources,Capital Payments To Contractors,26/06/2013,5200030758,18470.28
Lancaster City Council,30UH,Lancashire County Council,Health & Housing,Sustainable Initiatives,20/06/2013,5200030317,2000
Lancaster City Council,30UH,Lancashire County Council,Environmental Services,Capital Payments To Contractors,13/06/2013,5100109619,5667.8
Lancaster City Council,30UH,Lancashire County Council,Environmental Services,Capital Payments To Contractors,13/06/2013,5100109620,10748.5
Lancaster City Council,30UH,Lancashire County Council,Environmental Services,Capital Payments To Contractors,13/06/2013,5100109626,636
Lancaster City Council,30UH,Lancashire County Council,Environmental Services,Capital Payments To Contractors,13/06/2013,5100109627,3380
Lancaster City Council,30UH,Lancashire County Council,Environmental Services,Capital Payments To Contractors,13/06/2013,5100109628,2286.2
Lancaster City Council,30UH,Lancashire County Council,Environmental Services,Capital Payments To Contractors,27/06/2013,5100109631,3341
Lancaster City Council,30UH,Lancashire County Council,Governance,Land Charge Fees - L.C.C.,20/06/2013,5200030784,1425
Lancaster City Council,30UH,Lancashire County Developments Ltd,Health & Housing,Rent,18/06/2013,PROP037625,1438.85
Lancaster City Council,30UH,Lancashire Daf,Environmental Services,Repair & Mtce Of Vehicles,04/06/2013,1364802,574.49
Lancaster City Council,30UH,Lancashire Probation Board,Environmental Services,Probation Service,05/06/2013,OP/I002739,24000
Lancaster City Council,30UH,Lancaster County Court,Governance,Legal & Court Costs,24/06/2013,19573,550
Lancaster City Council,30UH,Lancaster Management Services T/A LaraNichols ,Health & Housing,Other Cleaning,06/06/2013,7897,617.02
Lancaster City Council,30UH,Lancaster Printing,Health & Housing,Sundry Expenses,27/06/2013,19623,681.69
Lancaster City Council,30UH,Lancaster Property Network Management Limited,Health & Housing,HMO License Fees,03/06/2013,spr000216,759.5
Lancaster City Council,30UH,Lathams,Health & Housing,Materials For Resale,28/06/2013,19668,511.3
Lancaster City Council,30UH,Les Halman Nurseries Ltd,Environmental Services,Materials - General,27/06/2013,38586,1026.4
Lancaster City Council,30UH,Les Halman Nurseries Ltd,Environmental Services,Materials - General,27/06/2013,38586,1026.4
Lancaster City Council,30UH,Let`s Play (Everywhere) Ltd,Environmental Services,Playground Improvements,03/06/2013,LPE/SS1566,5942.1
Lancaster City Council,30UH,Let`s Play (Everywhere) Ltd,Environmental Services,Playground Improvements,03/06/2013,LPE/SS1566,600
Lancaster City Council,30UH,Lidget Compton Limited,Environmental Services,Contracted Services,14/06/2013,19497,"7,010.00"
Lancaster City Council,30UH,Lidget Compton Limited,Environmental Services,VAT Control,14/06/2013,19497,"1,402.00"
Lancaster City Council,30UH,London Pupae Supplies,Health & Housing,Materials - General,28/06/2013,19675,499.5
Lancaster City Council,30UH,M & D Forsyth Electrical Services Ltd,Environmental Services,Contracted Services,05/06/2013,173,1355
Lancaster City Council,30UH,M & D Forsyth Electrical Services Ltd,Environmental Services,Void Maintenance - External,05/06/2013,172,2509
Lancaster City Council,30UH,M & D Forsyth Electrical Services Ltd,Environmental Services,Void Maintenance - External,18/06/2013,186,513
Lancaster City Council,30UH,M & D Forsyth Electrical Services Ltd,Environmental Services,Void Maintenance - External,18/06/2013,194,843
Lancaster City Council,30UH,M & D Forsyth Electrical Services Ltd,Environmental Services,Void Maintenance - External,18/06/2013,195,1059
Lancaster City Council,30UH,M & D Forsyth Electrical Services Ltd,Environmental Services,Void Maintenance - External,18/06/2013,196,1311
Lancaster City Council,30UH,M & D Forsyth Electrical Services Ltd,Environmental Services,Void Maintenance - External,18/06/2013,197,956
Lancaster City Council,30UH,M D Hanafin & Sons Ltd,Environmental Services,Contracted Services,21/06/2013,103455,816.45
Lancaster City Council,30UH,M D Hanafin & Sons Ltd,Environmental Services,Contracted Services,21/06/2013,103461,1509.07
Lancaster City Council,30UH,M D Hanafin & Sons Ltd,Environmental Services,Contracted Services,21/06/2013,103463,636.21
Lancaster City Council,30UH,M D Hanafin & Sons Ltd,Environmental Services,Contracted Services,21/06/2013,103467,558.22
Lancaster City Council,30UH,M D Hanafin & Sons Ltd,Environmental Services,Contracted Services,21/06/2013,103468,1619.32
Lancaster City Council,30UH,M D Hanafin & Sons Ltd,Environmental Services,Other Construction Costs,04/06/2013,99266,9920.84
Lancaster City Council,30UH,Magnet Limited,Environmental Services,Other Construction Costs,04/06/2013,158/155071,705.22
Lancaster City Council,30UH,Magnet Limited,Environmental Services,Other Construction Costs,04/06/2013,158/155105,649.19
Lancaster City Council,30UH,Magnet Limited,Environmental Services,Other Construction Costs,05/06/2013,158/155017,536.83
Lancaster City Council,30UH,Magnet Limited,Environmental Services,Other Construction Costs,05/06/2013,158/155212,508.34
Lancaster City Council,30UH,Magnet Limited,Environmental Services,Other Construction Costs,05/06/2013,158/155643,752.99
Lancaster City Council,30UH,Magnet Limited,Environmental Services,Other Construction Costs,05/06/2013,158/155716,982.54
Lancaster City Council,30UH,Magnet Limited,Environmental Services,Other Construction Costs,05/06/2013,158/155828,501.24
Lancaster City Council,30UH,Magnet Limited,Environmental Services,Other Construction Costs,05/06/2013,158/155969,605.81
Lancaster City Council,30UH,Magnet Limited,Environmental Services,Other Construction Costs,05/06/2013,158/155970,840.97
Lancaster City Council,30UH,Magnet Limited,Environmental Services,Other Construction Costs,12/06/2013,158/156023,547.74
Lancaster City Council,30UH,Magnet Limited,Environmental Services,Other Construction Costs,12/06/2013,158/156120,733.2
Lancaster City Council,30UH,Magnet Limited,Environmental Services,White Lund Stock,05/06/2013,158/155760,975
Lancaster City Council,30UH,Mercer & Sons Limited,Environmental Services,White Lund Stock,26/06/2013,716335,1337.41
Lancaster City Council,30UH,Metric Group Ltd,Environmental Services,Equipment and Tools - General,12/06/2013,C29069,2010
Lancaster City Council,30UH,Metropolitan Borough of Sefton,Governance,Service Training Budget,13/06/2013,328679,500
Lancaster City Council,30UH,Michael Testler Resources Ltd,Health & Housing,Rent,05/06/2013,5127,6200
Lancaster City Council,30UH,Michael Wilson Joinery and Flat Roofing Specialist,Health & Housing,Services - General,20/06/2013,009/13,1450
Lancaster City Council,30UH,Mobile Mini UK Ltd,Environmental Services,Capital Payments To Contractors,05/06/2013,712038716,780
Lancaster City Council,30UH,Mobile Mini UK Ltd,Environmental Services,Capital Payments To Contractors,13/06/2013,712038771,1240
Lancaster City Council,30UH,More Music in Morecambe Ltd,Health & Housing,Grants,06/06/2013,2307,2650
Lancaster City Council,30UH,Morecambe Press Ltd,Health & Housing,Tenants Participation,05/06/2013,5785,1814
Lancaster City Council,30UH,National Express,Health & Housing,National Express,04/06/2013,AREXT/00141793,508.73
Lancaster City Council,30UH,New Progress Housing Association Limited,Health & Housing,Services - General,05/06/2013,nscm248,1470
Lancaster City Council,30UH,Newclear Drains & Newlook Cleaning Services,Environmental Services,Contracted Services,03/06/2013,8479,1180
Lancaster City Council,30UH,Newclear Drains & Newlook Cleaning Services,Environmental Services,Contracted Services,13/06/2013,8482,610
Lancaster City Council,30UH,NHS Lanarkshire,Governance,Services - Medical Fees,25/06/2013,L0025095,2394.28
Lancaster City Council,30UH,NorthgateArinso UK Limited,Resources,Software Payroll-Personnel,10/06/2013,I2152913/2814,1900
Lancaster City Council,30UH,npower,Health & Housing,Electricity,11/06/2013,LGULQ2XQ,5898.37
Lancaster City Council,30UH,npower,Health & Housing,Electricity,11/06/2013,LGULQ2XX,5145.15
Lancaster City Council,30UH,npower,Health & Housing,Electricity,13/06/2013,LGULPW3J,799
Lancaster City Council,30UH,npower,Health & Housing,Electricity,13/06/2013,LGULPW3J,556.8
Lancaster City Council,30UH,npower,Health & Housing,Electricity,13/06/2013,LGULPW3J,1708.4
Lancaster City Council,30UH,npower,Health & Housing,Electricity,13/06/2013,lgulscv8,1032.27
Lancaster City Council,30UH,npower,Health & Housing,Electricity,13/06/2013,lgulscv8,900.06
Lancaster City Council,30UH,npower,Health & Housing,Electricity,13/06/2013,lgulscv8,1379.42
Lancaster City Council,30UH,npower,Environmental Services,Electricity,06/06/2013,LGULPWXM,1535.07
Lancaster City Council,30UH,npower,Environmental Services,Electricity,12/06/2013,LGULQ2X4,1871.95
Lancaster City Council,30UH,npower,Environmental Services,Electricity,12/06/2013,LGULQ2XW,1954.51
Lancaster City Council,30UH,npower,Environmental Services,Electricity,20/06/2013,LGULRQCY,1129.07
Lancaster City Council,30UH,npower,Environmental Services,Electricity,26/06/2013,LGULPWVG,2164.64
Lancaster City Council,30UH,npower,Resources,Electricity,03/06/2013,LGULPWVL,1545.28
Lancaster City Council,30UH,npower,Resources,Electricity,05/06/2013,LGULPWXT,501.1
Lancaster City Council,30UH,npower,Resources,Electricity,10/06/2013,LGULQ2X2,4839.99
Lancaster City Council,30UH,npower,Resources,Electricity,10/06/2013,LGULQ2X3,536.69
Lancaster City Council,30UH,npower,Resources,Electricity,10/06/2013,LGULQ2XT,1454.95
Lancaster City Council,30UH,npower,Resources,Electricity,10/06/2013,LGULQ2XV,956.1
Lancaster City Council,30UH,npower,Resources,Electricity,10/06/2013,LGULQ2XZ,2970.78
Lancaster City Council,30UH,npower,Resources,Electricity,13/06/2013,LGULRQC3,1580.81
Lancaster City Council,30UH,npower,Resources,Electricity,18/06/2013,LGULQ2XR,1234.87
Lancaster City Council,30UH,npower,Resources,Electricity,18/06/2013,LGULQ2XY,1136.14
Lancaster City Council,30UH,npower,Resources,Electricity,18/06/2013,LGULRQBZ,1504.3
Lancaster City Council,30UH,npower,Resources,Electricity,18/06/2013,LGULWFJT,2551.57
Lancaster City Council,30UH,npower,Resources,Electricity,18/06/2013,LGULWFJV,2592.85
Lancaster City Council,30UH,NSL Limited,Environmental Services,Cash Collection Expenses,26/06/2013,17637,3226.5
Lancaster City Council,30UH,NSL Limited,Environmental Services,Contracted Services,26/06/2013,17637,8228.8
Lancaster City Council,30UH,OC Cleaning Limited,Environmental Services,Window Cleaning,10/06/2013,1347,554.67
Lancaster City Council,30UH,Orona Limited,Resources,R & M - Buildings,11/06/2013,13/01/005481,1242.84
Lancaster City Council,30UH,Peter Savage Limited,Environmental Services,White Lund Stock,05/06/2013,OP/I130061,1008
Lancaster City Council,30UH,Piccadilly Garden Ltd.,Environmental Services,Contracted Services,05/06/2013,1709,918.42
Lancaster City Council,30UH,Piccadilly Garden Ltd.,Environmental Services,Contracted Services,25/06/2013,1732,918.42
Lancaster City Council,30UH,PlaySmart UK Ltd,Environmental Services,Materials - General,26/06/2013,02674PS,548
Lancaster City Council,30UH,PlaySmart UK Ltd,Environmental Services,Playground Improvements,04/06/2013,02634PS,1256
Lancaster City Council,30UH,Plumbing and Heating Distribution,Environmental Services,Materials - General,05/06/2013,701,502
Lancaster City Council,30UH,PPG Architectural Coatings UK Limited,Environmental Services,White Lund Stock,26/06/2013,4465549098,558.01
Lancaster City Council,30UH,PR Chauffeuring Services,Governance,Central Transport - General,11/06/2013,31.5.13,1137
Lancaster City Council,30UH,Preston City Council,Resources,Management Fees,14/06/2013,Preston June,179000
Lancaster City Council,30UH,Print Image Facilities LLP,Governance,Printing & Stationery,04/06/2013,c300634,1183.4
Lancaster City Council,30UH,Print Image Network Ltd,Governance,Printing & Stationery,04/06/2013,A009384,5807.48
Lancaster City Council,30UH,Print Image Network Ltd,Governance,Printing & Stationery,04/06/2013,A009604,953.1
Lancaster City Council,30UH,Profile Security Services Ltd,Environmental Services,Security Services,04/06/2013,92375,5360.2
Lancaster City Council,30UH,Pump Supplies Ltd,Regeneration and Planning,Contracted Services,06/06/2013,WI67240,1070
Lancaster City Council,30UH,Purchase Power,Resources,Postages,13/06/2013,BA638791,1013
Lancaster City Council,30UH,Quartzelec Ltd,Environmental Services,Capital Payments To Contractors,07/06/2013,7056222,4856.22
Lancaster City Council,30UH,Quartzelec Ltd,Environmental Services,Capital Payments To Contractors,19/06/2013,7053555,1528
Lancaster City Council,30UH,Quartzelec Ltd,Resources,R & M - Buildings,05/06/2013,7055868,1196.8
Lancaster City Council,30UH,Queensbury Shelters Ltd,Environmental Services,R & M - General,13/06/2013,53096,4827
Lancaster City Council,30UH,R Briggs & Son (Lancaster) Ltd,Environmental Services,Routine Maintenance,07/06/2013,16629,600
Lancaster City Council,30UH,R Briggs & Son (Lancaster) Ltd,Environmental Services,Routine Maintenance,07/06/2013,16635,1200
Lancaster City Council,30UH,R Briggs & Son (Lancaster) Ltd,Environmental Services,Routine Maintenance,10/06/2013,16636,653.4
Lancaster City Council,30UH,R G Parkins & Partners Ltd,Resources,R & M - Buildings,26/06/2013,L30036/01,1500
Lancaster City Council,30UH,R G Parkins & Partners Ltd,Regeneration and Planning,Capital Payments To Contractors,11/06/2013,L28262/07a,600
Lancaster City Council,30UH,Ray Adams Electrical Services,Health & Housing,Contract Maintenance,20/06/2013,414,500
Lancaster City Council,30UH,Reith Lambert Limited,Environmental Services,Services - St Nicholas Arcade,12/06/2013,16637,9111
Lancaster City Council,30UH,Remploy Ltd ,Environmental Services,Contracted Services,07/06/2013,SLS/80305587,6910.5
Lancaster City Council,30UH,Ricoh Capital Ltd,Resources,Printing\Copying Equipment,20/06/2013,35131465,6068.54
Lancaster City Council,30UH,Royal Mail Group Ltd,Governance,Postages,11/06/2013,9043512061,2776.6
Lancaster City Council,30UH,Royal Mail Group Ltd,Governance,Postages,12/06/2013,9043152108,3145.24
Lancaster City Council,30UH,RSPB,Regeneration and Planning,Grants,07/06/2013,npr000072,28402.16
Lancaster City Council,30UH,S R Brown Ltd,Health & Housing,Capital Grants,19/06/2013,spr000228,2898
Lancaster City Council,30UH,Sandinyoureye,Health & Housing,Entertainment Fees,06/06/2013,1302,1700
Lancaster City Council,30UH,Sandinyoureye,Health & Housing,Entertainment Fees,06/06/2013,1302,1700
Lancaster City Council,30UH,Shorrocks Building Works,Environmental Services,Contracted Services,04/06/2013,3126,4245
Lancaster City Council,30UH,Shorrocks Building Works,Environmental Services,Contracted Services,13/06/2013,3125,2476
Lancaster City Council,30UH,Shorrocks Building Works,Environmental Services,Contracted Services,20/06/2013,3127,3245
Lancaster City Council,30UH,Shorrocks Building Works,Environmental Services,Contracted Services,20/06/2013,3129,2105
Lancaster City Council,30UH,Shorrocks Building Works,Environmental Services,Contracted Services,21/06/2013,3132,529
Lancaster City Council,30UH,Shorrocks Building Works,Environmental Services,Contracted Services,21/06/2013,3134,2789
Lancaster City Council,30UH,Shorrocks Building Works,Environmental Services,Contracted Services,21/06/2013,3136,6750
Lancaster City Council,30UH,SitexOrbis Limited,Environmental Services,Void Maintenance - External,04/06/2013,R0480261,638.4
Lancaster City Council,30UH,SitexOrbis Limited,Environmental Services,Void Maintenance - External,19/06/2013,R0481939,704.12
Lancaster City Council,30UH,SitexOrbis Limited,Environmental Services,Void Maintenance - External,19/06/2013,R0485110,704.12
Lancaster City Council,30UH,SitexOrbis Limited,Regeneration and Planning,Security Services,04/06/2013,R0485696M,1291.29
Lancaster City Council,30UH,Slater Safety Supplies,Environmental Services,Clothing & Uniforms,20/06/2013,I34673,7578
Lancaster City Council,30UH,Slater Safety Supplies,Environmental Services,White Lund Stock,05/06/2013,136339,592.5
Lancaster City Council,30UH,Slater Safety Supplies,Environmental Services,White Lund Stock,17/06/2013,136544,901.4
Lancaster City Council,30UH,Slater Safety Supplies,Environmental Services,White Lund Stock,19/06/2013,136728,833.52
Lancaster City Council,30UH,Slater Safety Supplies,Environmental Services,White Lund Stock,20/06/2013,135182,661.5
Lancaster City Council,30UH,Solotrim Ltd.,Resources,Premises Related Insurance,18/06/2013,2091,775.31
Lancaster City Council,30UH,Solotrim Ltd.,Resources,Rent,18/06/2013,2092,7325
Lancaster City Council,30UH,Specsavers Optical Superstores Ltd,Health & Housing,Corporate Safety,27/06/2013,INVO/92068,538.1
Lancaster City Council,30UH,SSI Schaefer Ltd,Environmental Services,Equipment and Tools - General,06/06/2013,SI14623,6539.2
Lancaster City Council,30UH,SSI Schaefer Ltd,Environmental Services,Equipment and Tools - General,06/06/2013,SI14623,6539.2
Lancaster City Council,30UH,SSI Schaefer Ltd,Environmental Services,Equipment and Tools - General,06/06/2013,SI14709,15694.08
Lancaster City Council,30UH,SSI Schaefer Ltd,Environmental Services,Equipment and Tools - General,12/06/2013,SI14855,5745.92
Lancaster City Council,30UH,Stagecoach,Health & Housing,Stagecoach Tickets,07/06/2013,19433,"5,916.92"
Lancaster City Council,30UH,Stonewell Property Company Ltd,Resources,Rent,13/06/2013,SI10117,17500
Lancaster City Council,30UH,Stonewell Property Company Ltd,Resources,Service Charges,13/06/2013,SI10118,2565.25
Lancaster City Council,30UH,Straight PLC,Environmental Services,Equipment and Tools - General,12/06/2013,SI-186414,500
Lancaster City Council,30UH,Studio Arts,Environmental Services,Car Parking Permits,03/06/2013,cpr000086,641.66
Lancaster City Council,30UH,Supalite Fencing,Environmental Services,Other Construction Costs,06/06/2013,39490,3297.6
Lancaster City Council,30UH,Switchshop Limited,Resources,Infrastructure - Update & Maintenance,12/06/2013,117776,886
Lancaster City Council,30UH,Switchshop Limited,Resources,Infrastructure - Update & Maintenance,12/06/2013,117776,696
Lancaster City Council,30UH,T. Jackson Plumbing & Heating Services,Health & Housing,Capital Grants,05/06/2013,spr000219,3000
Lancaster City Council,30UH,Take One media Ltd,Health & Housing,Brochure Distribution,05/06/2013,LF/I011580,2102
Lancaster City Council,30UH,The Bay,Health & Housing,Miscellaneous Advertising,11/06/2013,546760,602.33
Lancaster City Council,30UH,The Birmingham Stage Co (London) Ltd,Health & Housing,Exhibitions & Events - Guarantees,13/06/2013,79,8000
Lancaster City Council,30UH,The BSS Group PLC,Environmental Services,Equipment and Tools - General,07/06/2013,4193 131380,2555.88
Lancaster City Council,30UH,The Performing Right Society,Health & Housing,Performing Rights Fees,25/06/2013,398582,568.95
Lancaster City Council,30UH,The Travellers Choice,Health & Housing,Central Transport - General,11/06/2013,60355,1329.54
Lancaster City Council,30UH,The Travellers Choice,Health & Housing,Central Transport - General,11/06/2013,60356,2101.2
Lancaster City Council,30UH,The Travellers Choice,Health & Housing,Central Transport - General,11/06/2013,60357,1185.6
Lancaster City Council,30UH,T-Mobile (UK) Ltd.,Resources,Mobile Telephones,05/06/2013,V00907706741,1212.69
Lancaster City Council,30UH,TNT Post North Limited,Resources,Postages,03/06/2013,IN18PS13006255,2508.81
Lancaster City Council,30UH,TNT Post North Limited,Resources,Postages,05/06/2013,IN18PS13005944,2242.18
Lancaster City Council,30UH,TNT Post North Limited,Resources,Postages,05/06/2013,IN18PS13007836,1873.06
Lancaster City Council,30UH,TNT Post North Limited,Resources,Postages,05/06/2013,IN18PS13007843,2481.74
Lancaster City Council,30UH,TNT Post North Limited,Resources,Postages,13/06/2013,IN18AS13002390,1887.66
Lancaster City Council,30UH,TNT Post North Limited,Resources,Postages,13/06/2013,IN18PS13007915,1399.27
Lancaster City Council,30UH,TNT Post North Limited,Resources,Postages,13/06/2013,IN18PS13008405,2156.38
Lancaster City Council,30UH,TNT Post North Limited,Resources,Postages,13/06/2013,IN18PS13008641,1560.66
Lancaster City Council,30UH,TNT Post North Limited,Resources,Postages,19/06/2013,IN18PS13008983,1826.05
Lancaster City Council,30UH,Toni Weekes Music Agent,Health & Housing,Exhibitions & Events - Guarantees,25/06/2013,964,798.75
Lancaster City Council,30UH,Tony Clayman Promotions,Health & Housing,Exhibitions & Events - Guarantees,13/06/2013,B2955,757.18
Lancaster City Council,30UH,Total Gas and Power,Health & Housing,Gas,28/06/2013,19635,"1,841.70"
Lancaster City Council,30UH,Travelers Insurance Company Ltd,Resources,Insurance Excess,26/06/2013,783085,10000
Lancaster City Council,30UH,Travelers Insurance Company Ltd,Resources,Insurance Excess,26/06/2013,810965,8502.57
Lancaster City Council,30UH,Travis Perkins Trading Company Ltd,Environmental Services,Other Construction Costs,07/06/2013,9286 AIZ111,2078.1
Lancaster City Council,30UH,Travis Perkins Trading Company Ltd,Environmental Services,Other Construction Costs,07/06/2013,9286 AIZ116,1512
Lancaster City Council,30UH,Tunstall Telecom,Health & Housing,Equipment Funded by Reserves,13/06/2013,3IN/10222932,3960
Lancaster City Council,30UH,Tunstall Telecom,Health & Housing,Equipment Funded by Reserves,13/06/2013,3IN/10222932,749.4
Lancaster City Council,30UH,Tunstall Telecom,Health & Housing,Equipment Funded by Reserves,13/06/2013,3IN/10222932,700
Lancaster City Council,30UH,Tunstall Telecom,Environmental Services,Contracted Services,06/06/2013,50246973,586.64
Lancaster City Council,30UH,Tyrone Lewis General Building Contractors,Environmental Services,Contracted Services,21/06/2013,Michael grove,3810
Lancaster City Council,30UH,Tyrone Lewis General Building Contractors,Environmental Services,Void Maintenance - External,05/06/2013,27 Croftlands,1050
Lancaster City Council,30UH,United Utilities,Health & Housing,Water Services,03/06/2013,19348,638.17
Lancaster City Council,30UH,United Utilities,Health & Housing,Water Services,13/06/2013,19484,"4,604.84"
Lancaster City Council,30UH,United Utilities,Health & Housing,Water Services,13/06/2013,4024848935,998.79
Lancaster City Council,30UH,United Utilities,Resources,Water Services,10/06/2013,4076336880,871.31
Lancaster City Council,30UH,United Utilities,Health & Housing,Water Services,27/06/2013,20/06/2013,8442.95
Lancaster City Council,30UH,United Utilities,Environmental Services,Water Services,05/06/2013,4077148659,586.25
Lancaster City Council,30UH,United Utilities,Environmental Services,Water Services,25/06/2013,4081667854,2883.58
Lancaster City Council,30UH,Universal Pool Services Ltd,Health & Housing,R & M - Buildings,04/06/2013,397,650
Lancaster City Council,30UH,Valley View Pets Hotel,Health & Housing,Services - Kennelling,11/06/2013,16/13,2695
Lancaster City Council,30UH,Water Sculptures,Regeneration and Planning,R & M - Sea & River / Promenade,19/06/2013,X017,6481.5
Lancaster City Council,30UH,Watkins Hire Limited,Resources,R & M - Buildings,05/06/2013,42353,3000
Lancaster City Council,30UH,Watkins Hire Limited,Resources,R & M - Buildings,11/06/2013,42569,750
Lancaster City Council,30UH,Wessex Products (Leasing) Limited,Resources,Equipment Maintenance,19/06/2013,94016,642.2
Lancaster City Council,30UH,West Coast Glass (Morecambe) Ltd,Environmental Services,Materials - General,07/06/2013,20417E,522
Lancaster City Council,30UH,Westmorland Tree Care Ltd,Environmental Services,Materials - General,04/06/2013,4973,1550
Lancaster City Council,30UH,Whinfield Study Trust,Health & Housing,Electricity,12/06/2013,WHO122,615.12
Lancaster City Council,30UH,Whinfield Study Trust,Health & Housing,Gas,12/06/2013,WHO122,1055.21
Lancaster City Council,30UH,Whitespace Work Software Ltd,Environmental Services,Waste Manager Maintenance,06/06/2013,6356,1318.77
Lancaster City Council,30UH,Whittle Programmed Painting Ltd,Environmental Services,Rota Painting,06/06/2013,SINV06300,25765.8
Lancaster City Council,30UH,Wybone Limited,Environmental Services,Materials - General,05/06/2013,98821/G,740.46
Lancaster City Council,30UH,Xi Training Ltd,Environmental Services,Rota Painting,04/06/2013,3209,850
Lancaster City Council,30UH,"Your Electrical S, S & S Ltd  T/a YESSS Electrical",Environmental Services,White Lund Stock,17/06/2013,062IN00047,2574
